[Event "Titled Tuesday Blitz May 9 Early 2023"]
[White "Leiva, Gianmarco"]
[Black "Chernomordik, Pavel"]
[WhiteFideId "3804399"]
[BlackFideId "2804530"]
[WhiteElo "2365"]
[BlackElo "2193"]
[Result "1-0"]
[Round "04"]
[TimeControl "180+2"]
[Date "2023.05.09"]
[WhiteClock "0:00:17"]
[BlackClock "0:00:00"]

1. e4 {[%clk 0:02:56]}  g6 {[%clk 0:02:59]} 2. d4 {[%clk 0:02:54]}  Bg7 {[%clk 0:02:59]} 3. Nc3 {[%clk 0:02:54]}  d6 {[%clk 0:02:59]} 4. Bc4 {[%clk 0:02:53]}  e6 {[%clk 0:02:58]} 5. Nf3 {[%clk 0:02:50]}  a6 {[%clk 0:02:58]} 6. a4 {[%clk 0:02:50]}  b6 {[%clk 0:02:58]} 7. Bg5 {[%clk 0:02:41]}  Ne7 {[%clk 0:02:57]} 8. Qd2 {[%clk 0:02:39]}  h6 {[%clk 0:02:56]} 9. Be3 {[%clk 0:02:37]}  g5 {[%clk 0:02:56]} 10. g4 {[%clk 0:02:32]}  Ng6 {[%clk 0:02:50]} 11. O-O-O {[%clk 0:02:11]}  Bb7 {[%clk 0:02:44]} 12. Bd3 {[%clk 0:02:04]}  Nd7 {[%clk 0:02:40]} 13. h4 {[%clk 0:02:04]}  gxh4 {[%clk 0:02:39]} 14. Rh3 {[%clk 0:02:04]}  c5 {[%clk 0:02:34]} 15. d5 {[%clk 0:01:55]}  exd5 {[%clk 0:02:24]} 16. exd5 {[%clk 0:01:55]}  Nde5 {[%clk 0:02:14]} 17. Nxe5 {[%clk 0:01:48]}  Nxe5 {[%clk 0:02:08]} 18. Be2 {[%clk 0:01:46]}  Ng6 {[%clk 0:01:54]} 19. f4 {[%clk 0:01:32]}  Qf6 {[%clk 0:01:37]} 20. f5 {[%clk 0:01:30]}  Ne7 {[%clk 0:01:24]} 21. Rf1 {[%clk 0:01:25]}  Nxd5 {[%clk 0:01:17]} 22. g5 {[%clk 0:01:20]}  hxg5 {[%clk 0:00:59]} 23. Bxg5 {[%clk 0:01:20]}  Qxg5 {[%clk 0:00:59]} 24. Qxg5 {[%clk 0:01:21]}  Bh6 {[%clk 0:00:59]} 25. Qxh6 {[%clk 0:00:58]}  Rxh6 {[%clk 0:00:58]} 26. Bf3 {[%clk 0:00:59]}  Nf4 {[%clk 0:00:23]} 27. Bxb7 {[%clk 0:00:55]}  Nxh3 {[%clk 0:00:20]} 28. Bxa8 {[%clk 0:00:53]}  Ng5 {[%clk 0:00:19]} 29. Ne4 {[%clk 0:00:40]}  Nxe4 {[%clk 0:00:16]} 30. Bxe4 {[%clk 0:00:41]}  Kd7 {[%clk 0:00:15]} 31. Bb7 {[%clk 0:00:38]}  a5 {[%clk 0:00:11]} 32. Kd2 {[%clk 0:00:31]}  h3 {[%clk 0:00:10]} 33. Kc3 {[%clk 0:00:29]}  Rh4 {[%clk 0:00:08]} 34. Kb3 {[%clk 0:00:24]}  Rb4+ {[%clk 0:00:06]} 35. Ka3 {[%clk 0:00:24]}  Rh4 {[%clk 0:00:06]} 36. Bd5 {[%clk 0:00:22]}  f6 {[%clk 0:00:05]} 37. c3 {[%clk 0:00:20]}  h2 {[%clk 0:00:03]} 38. Kb3 {[%clk 0:00:20]}  c4+ {[%clk 0:00:00]} 39. Kc2 {[%clk 0:00:17]} 1-0


[Site "https://www.chess.com"]

[Event "Titled Tuesday Blitz May 9 Early 2023"]
[White "Perez Gormaz, Matias"]
[Black "Nguyen Hong Nhung"]
[WhiteFideId "3406342"]
[BlackFideId "12412201"]
[WhiteElo "2362"]
[BlackElo "1996"]
[Result "0-1"]
[Round "04"]
[TimeControl "180+2"]
[Date "2023.05.09"]
[WhiteClock "0:00:02"]
[BlackClock "0:00:15"]

1. e4 {[%clk 0:03:00]}  c5 {[%clk 0:02:59]} 2. Nf3 {[%clk 0:03:01]}  e6 {[%clk 0:03:00]} 3. g3 {[%clk 0:03:01]}  Nc6 {[%clk 0:02:59]} 4. Bg2 {[%clk 0:03:01]}  Nf6 {[%clk 0:02:59]} 5. Qe2 {[%clk 0:03:01]}  Be7 {[%clk 0:02:56]} 6. e5 {[%clk 0:02:59]}  Nd5 {[%clk 0:02:53]} 7. O-O {[%clk 0:02:59]}  d6 {[%clk 0:02:53]} 8. exd6 {[%clk 0:02:45]}  Qxd6 {[%clk 0:02:54]} 9. Rd1 {[%clk 0:02:44]}  O-O {[%clk 0:02:41]} 10. d4 {[%clk 0:02:39]}  Qc7 {[%clk 0:02:37]} 11. c4 {[%clk 0:02:35]}  Nf6 {[%clk 0:02:33]} 12. Nc3 {[%clk 0:02:17]}  cxd4 {[%clk 0:02:29]} 13. Nxd4 {[%clk 0:02:17]}  Nxd4 {[%clk 0:02:28]} 14. Rxd4 {[%clk 0:02:18]}  e5 {[%clk 0:02:16]} 15. Nb5 {[%clk 0:01:41]}  Qc5 {[%clk 0:02:10]} 16. Rh4 {[%clk 0:01:33]}  a6 {[%clk 0:01:33]} 17. Be3 {[%clk 0:01:33]}  Qb4 {[%clk 0:01:33]} 18. Nc7 {[%clk 0:01:24]}  Rb8 {[%clk 0:01:18]} 19. Qc2 {[%clk 0:01:20]}  g6 {[%clk 0:00:54]} 20. Nd5 {[%clk 0:00:23]}  Nxd5 {[%clk 0:00:53]} 21. Bxd5 {[%clk 0:00:22]}  Bxh4 {[%clk 0:00:50]} 22. gxh4 {[%clk 0:00:23]}  Bf5 {[%clk 0:00:47]} 23. Qc1 {[%clk 0:00:22]}  b5 {[%clk 0:00:29]} 24. a3 {[%clk 0:00:11]}  Qd6 {[%clk 0:00:27]} 25. Bh6 {[%clk 0:00:03]}  Rfe8 {[%clk 0:00:21]} 26. Bg2 {[%clk 0:00:03]}  Rbc8 {[%clk 0:00:20]} 27. b3 {[%clk 0:00:01]}  bxc4 {[%clk 0:00:19]} 28. bxc4 {[%clk 0:00:02]}  Qd4 {[%clk 0:00:15]} 29. Ra2 {[%clk 0:00:02]}  Rxc4 {[%clk 0:00:14]} 30. Qg5 {[%clk 0:00:02]}  Qd1+ {[%clk 0:00:14]} 31. Bf1 {[%clk 0:00:02]}  Rg4+ {[%clk 0:00:15]} 32. Qxg4 {[%clk 0:00:02]}  Qxg4+ {[%clk 0:00:15]} 0-1


[Site "https://www.chess.com"]

[Event "Titled Tuesday Blitz May 9 Early 2023"]
[White "cristianserban1"]
[Black "Sammed Jaykumar, Shete"]
[BlackFideId "5073421"]
[WhiteElo "2478"]
[BlackElo "2278"]
[Result "0-1"]
[Round "04"]
[TimeControl "180+2"]
[Date "2023.05.09"]
[WhiteClock "0:00:00"]
[BlackClock "0:01:22"]

1. d4 {[%clk 0:03:00]}  Nf6 {[%clk 0:02:53]} 2. Bf4 {[%clk 0:03:00]}  d6 {[%clk 0:02:48]} 3. Nc3 {[%clk 0:02:56]}  c6 {[%clk 0:02:47]} 4. e4 {[%clk 0:02:55]}  Qb6 {[%clk 0:02:46]} 5. Rb1 {[%clk 0:02:36]}  g6 {[%clk 0:02:39]} 6. h3 {[%clk 0:02:27]}  Bg7 {[%clk 0:02:39]} 7. Nf3 {[%clk 0:02:28]}  O-O {[%clk 0:02:37]} 8. Be2 {[%clk 0:02:22]}  d5 {[%clk 0:02:16]} 9. e5 {[%clk 0:02:20]}  Ne4 {[%clk 0:02:16]} 10. Nxe4 {[%clk 0:02:05]}  dxe4 {[%clk 0:02:17]} 11. Ng5 {[%clk 0:02:05]}  Rd8 {[%clk 0:02:18]} 12. c3 {[%clk 0:01:45]}  c5 {[%clk 0:02:14]} 13. d5 {[%clk 0:01:20]}  Nc6 {[%clk 0:02:02]} 14. e6 {[%clk 0:00:39]}  fxe6 {[%clk 0:01:39]} 15. Bc4 {[%clk 0:00:20]}  Na5 {[%clk 0:01:38]} 16. b3 {[%clk 0:00:04]}  Nxc4 {[%clk 0:01:30]} 17. bxc4 {[%clk 0:00:04]}  Bxc3+ {[%clk 0:01:31]} 18. Kf1 {[%clk 0:00:05]}  Qa6 {[%clk 0:01:30]} 19. h4 {[%clk 0:00:04]}  Qxc4+ {[%clk 0:01:24]} 20. Kg1 {[%clk 0:00:05]}  Rxd5 {[%clk 0:01:24]} 21. Qc1 {[%clk 0:00:03]}  e5 {[%clk 0:01:23]} 22. Be3 {[%clk 0:00:02]}  Bg4 {[%clk 0:01:21]} 23. h5 {[%clk 0:00:02]}  Rd1+ {[%clk 0:01:21]} 24. Qxd1 {[%clk 0:00:02]}  Bxd1 {[%clk 0:01:22]} 25. Rxd1 {[%clk 0:00:03]}  Bd4 {[%clk 0:01:21]} 26. hxg6 {[%clk 0:00:00]}  hxg6 {[%clk 0:01:22]} 0-1


[Site "https://www.chess.com"]

[Event "Titled Tuesday Blitz May 9 Early 2023"]
[White "Aakanksha Hagawane"]
[Black "djokovic74"]
[WhiteFideId "25014510"]
[WhiteElo "2081"]
[BlackElo "2683"]
[Result "0-1"]
[Round "04"]
[TimeControl "180+2"]
[Date "2023.05.09"]
[WhiteClock "0:00:13"]
[BlackClock "0:00:11"]

1. e4 {[%clk 0:03:00]}  e6 {[%clk 0:03:00]} 2. d4 {[%clk 0:03:00]}  d5 {[%clk 0:03:01]} 3. Nc3 {[%clk 0:02:51]}  Nf6 {[%clk 0:03:01]} 4. e5 {[%clk 0:02:48]}  Nfd7 {[%clk 0:03:01]} 5. f4 {[%clk 0:02:48]}  c5 {[%clk 0:03:01]} 6. Nf3 {[%clk 0:02:49]}  Nc6 {[%clk 0:03:02]} 7. Be3 {[%clk 0:02:49]}  Be7 {[%clk 0:02:58]} 8. Qd2 {[%clk 0:02:42]}  O-O {[%clk 0:02:58]} 9. Be2 {[%clk 0:02:35]}  a6 {[%clk 0:02:55]} 10. O-O {[%clk 0:02:30]}  b5 {[%clk 0:02:53]} 11. Nd1 {[%clk 0:02:30]}  cxd4 {[%clk 0:02:54]} 12. Nxd4 {[%clk 0:02:30]}  Nxd4 {[%clk 0:02:43]} 13. Bxd4 {[%clk 0:02:29]}  Qc7 {[%clk 0:02:44]} 14. c3 {[%clk 0:02:20]}  Nc5 {[%clk 0:02:40]} 15. Nf2 {[%clk 0:02:18]}  Bb7 {[%clk 0:02:35]} 16. Qe3 {[%clk 0:02:11]}  Ne4 {[%clk 0:02:28]} 17. Bd3 {[%clk 0:02:02]}  Nc5 {[%clk 0:01:47]} 18. Bc2 {[%clk 0:01:57]}  a5 {[%clk 0:01:35]} 19. Ng4 {[%clk 0:01:49]}  Ne4 {[%clk 0:01:28]} 20. Bxe4 {[%clk 0:01:07]}  dxe4 {[%clk 0:01:28]} 21. Nf6+ {[%clk 0:01:07]}  Kh8 {[%clk 0:01:21]} 22. Qh3 {[%clk 0:00:56]}  gxf6 {[%clk 0:01:11]} 23. exf6 {[%clk 0:00:52]}  Bc5 {[%clk 0:01:02]} 24. Rae1 {[%clk 0:00:35]}  Rg8 {[%clk 0:00:44]} 25. Re3 {[%clk 0:00:33]}  Bxd4 {[%clk 0:00:43]} 26. cxd4 {[%clk 0:00:33]}  Rg6 {[%clk 0:00:37]} 27. f5 {[%clk 0:00:31]}  exf5 {[%clk 0:00:29]} 28. Rxf5 {[%clk 0:00:32]}  Qc1+ {[%clk 0:00:21]} 29. Rf1 {[%clk 0:00:31]}  Qd2 {[%clk 0:00:17]} 30. Kh1 {[%clk 0:00:20]}  Rag8 {[%clk 0:00:12]} 31. g3 {[%clk 0:00:13]}  Qxe3 {[%clk 0:00:11]} 0-1


[Site "https://www.chess.com"]

[Event "Titled Tuesday Blitz May 9 Early 2023"]
[White "brm72"]
[Black "Djokic, Mihailo"]
[BlackFideId "976440"]
[WhiteElo "2595"]
[BlackElo "2294"]
[Result "0-1"]
[Round "04"]
[TimeControl "180+2"]
[Date "2023.05.09"]
[WhiteClock "0:00:06"]
[BlackClock "0:00:51"]

1. e4 {[%clk 0:03:00]}  c5 {[%clk 0:03:00]} 2. Nf3 {[%clk 0:03:00]}  d6 {[%clk 0:03:00]} 3. d4 {[%clk 0:03:01]}  cxd4 {[%clk 0:03:01]} 4. Nxd4 {[%clk 0:03:02]}  Nf6 {[%clk 0:03:01]} 5. Nc3 {[%clk 0:03:02]}  g6 {[%clk 0:03:02]} 6. f3 {[%clk 0:03:00]}  Bg7 {[%clk 0:03:02]} 7. Be3 {[%clk 0:03:00]}  O-O {[%clk 0:03:03]} 8. Qd2 {[%clk 0:03:00]}  Nc6 {[%clk 0:03:03]} 9. O-O-O {[%clk 0:03:01]}  Bd7 {[%clk 0:03:04]} 10. Kb1 {[%clk 0:02:56]}  Rc8 {[%clk 0:03:04]} 11. g4 {[%clk 0:02:55]}  Ne5 {[%clk 0:03:04]} 12. h4 {[%clk 0:02:46]}  Qa5 {[%clk 0:03:04]} 13. Be2 {[%clk 0:02:26]}  Rxc3 {[%clk 0:03:00]} 14. Qxc3 {[%clk 0:02:24]}  Qxc3 {[%clk 0:03:00]} 15. bxc3 {[%clk 0:02:25]}  Rc8 {[%clk 0:03:01]} 16. Kb2 {[%clk 0:02:21]}  Be8 {[%clk 0:03:01]} 17. h5 {[%clk 0:02:17]}  Nfd7 {[%clk 0:03:01]} 18. f4 {[%clk 0:02:09]}  Nc4+ {[%clk 0:02:58]} 19. Bxc4 {[%clk 0:02:08]}  Rxc4 {[%clk 0:02:58]} 20. Rh3 {[%clk 0:01:54]}  Nc5 {[%clk 0:02:57]} 21. Bg1 {[%clk 0:01:24]}  Nxe4 {[%clk 0:02:55]} 22. hxg6 {[%clk 0:01:21]}  hxg6 {[%clk 0:02:53]} 23. f5 {[%clk 0:01:17]}  Bd7 {[%clk 0:02:40]} 24. Rf3 {[%clk 0:01:14]}  gxf5 {[%clk 0:02:30]} 25. gxf5 {[%clk 0:01:15]}  Bc6 {[%clk 0:02:17]} 26. Rh3 {[%clk 0:01:13]}  Bd5 {[%clk 0:02:05]} 27. Rhd3 {[%clk 0:01:08]}  Ra4 {[%clk 0:02:00]} 28. Nb3 {[%clk 0:01:04]}  Bc4 {[%clk 0:01:58]} 29. Rh3 {[%clk 0:00:57]}  Bxc3+ {[%clk 0:01:47]} 30. Rxc3 {[%clk 0:00:38]}  Rxa2+ {[%clk 0:01:46]} 31. Kxa2 {[%clk 0:00:38]}  Nxc3+ {[%clk 0:01:46]} 32. Ka3 {[%clk 0:00:36]}  Nxd1 {[%clk 0:01:46]} 33. Bxa7 {[%clk 0:00:36]}  Bxb3 {[%clk 0:01:46]} 34. Kxb3 {[%clk 0:00:29]}  d5 {[%clk 0:01:09]} 35. Bd4 {[%clk 0:00:28]}  Kh7 {[%clk 0:00:57]} 36. Ka2 {[%clk 0:00:20]}  Kh6 {[%clk 0:00:57]} 37. Kb1 {[%clk 0:00:21]}  Kg5 {[%clk 0:00:57]} 38. f6 {[%clk 0:00:20]}  e5 {[%clk 0:00:53]} 39. Bxe5 {[%clk 0:00:18]}  Nf2 {[%clk 0:00:49]} 40. Kc1 {[%clk 0:00:17]}  Ne4 {[%clk 0:00:49]} 41. Kd1 {[%clk 0:00:15]}  Kf5 {[%clk 0:00:50]} 42. Bc7 {[%clk 0:00:14]}  Nxf6 {[%clk 0:00:50]} 43. Ke2 {[%clk 0:00:14]}  Ke4 {[%clk 0:00:50]} 44. Bd8 {[%clk 0:00:12]}  Nd7 {[%clk 0:00:49]} 45. Be7 {[%clk 0:00:11]}  Ne5 {[%clk 0:00:50]} 46. Bd6 {[%clk 0:00:10]}  f5 {[%clk 0:00:50]} 47. Bc7 {[%clk 0:00:10]}  f4 {[%clk 0:00:50]} 48. Bb8 {[%clk 0:00:09]}  f3+ {[%clk 0:00:50]} 49. Kf2 {[%clk 0:00:10]}  Ng4+ {[%clk 0:00:51]} 50. Kg3 {[%clk 0:00:10]}  Ne3 {[%clk 0:00:50]} 51. c3 {[%clk 0:00:09]}  Nd1 {[%clk 0:00:51]} 52. Bc7 {[%clk 0:00:06]}  Nxc3 {[%clk 0:00:51]} 0-1


[Site "https://www.chess.com"]

[Event "Titled Tuesday Blitz May 9 Early 2023"]
[White "Srihari L R"]
[Black "feuervogel1000000"]
[WhiteFideId "46617116"]
[WhiteElo "2334"]
[BlackElo "2446"]
[Result "0-1"]
[Round "04"]
[TimeControl "180+2"]
[Date "2023.05.09"]
[WhiteClock "0:00:01"]
[BlackClock "0:00:07"]

1. b3 {[%clk 0:03:00]}  e5 {[%clk 0:02:58]} 2. Bb2 {[%clk 0:03:01]}  Nc6 {[%clk 0:02:57]} 3. e3 {[%clk 0:03:00]}  Nf6 {[%clk 0:02:56]} 4. Bb5 {[%clk 0:03:00]}  e4 {[%clk 0:02:54]} 5. d4 {[%clk 0:02:41]}  d5 {[%clk 0:02:47]} 6. Nd2 {[%clk 0:02:33]}  a6 {[%clk 0:02:46]} 7. Be2 {[%clk 0:02:33]}  Ne7 {[%clk 0:02:35]} 8. c4 {[%clk 0:02:27]}  c6 {[%clk 0:02:34]} 9. h4 {[%clk 0:02:23]}  h5 {[%clk 0:02:28]} 10. Nh3 {[%clk 0:02:23]}  Bg4 {[%clk 0:02:28]} 11. Nf4 {[%clk 0:02:23]}  g6 {[%clk 0:02:20]} 12. f3 {[%clk 0:01:53]}  exf3 {[%clk 0:01:42]} 13. gxf3 {[%clk 0:01:38]}  Bc8 {[%clk 0:01:20]} 14. cxd5 {[%clk 0:01:25]}  cxd5 {[%clk 0:01:19]} 15. Nd3 {[%clk 0:01:11]}  Nf5 {[%clk 0:01:15]} 16. Nf1 {[%clk 0:01:09]}  Bh6 {[%clk 0:01:10]} 17. Bc1 {[%clk 0:01:05]}  Qe7 {[%clk 0:01:06]} 18. Kf2 {[%clk 0:01:04]}  O-O {[%clk 0:01:03]} 19. Ne5 {[%clk 0:01:01]}  Nd7 {[%clk 0:00:56]} 20. f4 {[%clk 0:00:47]}  Nxe5 {[%clk 0:00:48]} 21. dxe5 {[%clk 0:00:41]}  d4 {[%clk 0:00:29]} 22. exd4 {[%clk 0:00:34]}  Rd8 {[%clk 0:00:27]} 23. Be3 {[%clk 0:00:16]}  Nxe3 {[%clk 0:00:03]} 24. Nxe3 {[%clk 0:00:17]}  Bxf4 {[%clk 0:00:02]} 25. Bf3 {[%clk 0:00:17]}  Bxe5 {[%clk 0:00:03]} 26. Nd5 {[%clk 0:00:17]}  Rxd5 {[%clk 0:00:02]} 27. Bxd5 {[%clk 0:00:17]}  Qf6+ {[%clk 0:00:03]} 28. Kg2 {[%clk 0:00:15]}  Bxd4 {[%clk 0:00:04]} 29. Rc1 {[%clk 0:00:13]}  Bg4 {[%clk 0:00:03]} 30. Bf3 {[%clk 0:00:13]}  Bf5 {[%clk 0:00:02]} 31. Qe2 {[%clk 0:00:09]}  Rd8 {[%clk 0:00:03]} 32. Rcd1 {[%clk 0:00:07]}  Kg7 {[%clk 0:00:04]} 33. Rd2 {[%clk 0:00:06]}  Bb6 {[%clk 0:00:04]} 34. Rxd8 {[%clk 0:00:06]}  Bxd8 {[%clk 0:00:05]} 35. Qd2 {[%clk 0:00:04]}  Bc7 {[%clk 0:00:05]} 36. Qg5 {[%clk 0:00:04]}  Qe5 {[%clk 0:00:05]} 37. Qd2 {[%clk 0:00:04]}  Qg3+ {[%clk 0:00:05]} 38. Kf1 {[%clk 0:00:03]}  Qxf3+ {[%clk 0:00:06]} 39. Ke1 {[%clk 0:00:03]}  Bd3 {[%clk 0:00:07]} 40. Rg1 {[%clk 0:00:02]}  Bg3+ {[%clk 0:00:06]} 41. Rxg3 {[%clk 0:00:01]}  Qf1# {[%clk 0:00:07]} 0-1


[Site "https://www.chess.com"]

[Event "Titled Tuesday Blitz May 9 Early 2023"]
[White "Rosen, Eric"]
[Black "Koridze, Lile"]
[WhiteFideId "2032562"]
[BlackFideId "13612514"]
[WhiteElo "2331"]
[BlackElo "2047"]
[Result "1-0"]
[Round "04"]
[TimeControl "180+2"]
[Date "2023.05.09"]
[WhiteClock "0:00:05"]
[BlackClock "0:00:02"]

1. d4 {[%clk 0:03:00]}  Nf6 {[%clk 0:02:59]} 2. Bf4 {[%clk 0:02:59]}  d5 {[%clk 0:02:55]} 3. e3 {[%clk 0:02:58]}  e6 {[%clk 0:02:44]} 4. Nf3 {[%clk 0:02:59]}  Bd6 {[%clk 0:02:32]} 5. Ne5 {[%clk 0:02:59]}  O-O {[%clk 0:02:30]} 6. Nd2 {[%clk 0:02:59]}  c5 {[%clk 0:02:29]} 7. c3 {[%clk 0:02:59]}  Nc6 {[%clk 0:02:28]} 8. Ndf3 {[%clk 0:02:59]}  Qc7 {[%clk 0:02:28]} 9. Bd3 {[%clk 0:02:58]}  h6 {[%clk 0:02:27]} 10. Bc2 {[%clk 0:02:55]}  b6 {[%clk 0:02:26]} 11. O-O {[%clk 0:02:22]}  Bb7 {[%clk 0:02:21]} 12. Re1 {[%clk 0:02:02]}  Ne4 {[%clk 0:02:08]} 13. Nxc6 {[%clk 0:01:52]}  Bxc6 {[%clk 0:02:00]} 14. Bxd6 {[%clk 0:01:46]}  Nxd6 {[%clk 0:01:57]} 15. Ne5 {[%clk 0:01:42]}  Rad8 {[%clk 0:01:45]} 16. Qd3 {[%clk 0:01:39]}  f5 {[%clk 0:01:44]} 17. b3 {[%clk 0:01:22]}  Bb5 {[%clk 0:01:38]} 18. Qd2 {[%clk 0:01:10]}  Rc8 {[%clk 0:01:36]} 19. Rac1 {[%clk 0:01:01]}  Qd8 {[%clk 0:01:25]} 20. f3 {[%clk 0:00:52]}  Qf6 {[%clk 0:01:16]} 21. Bd3 {[%clk 0:00:42]}  c4 {[%clk 0:01:12]} 22. Bf1 {[%clk 0:00:40]}  Rfd8 {[%clk 0:01:07]} 23. b4 {[%clk 0:00:37]}  Nf7 {[%clk 0:00:55]} 24. f4 {[%clk 0:00:36]}  Nd6 {[%clk 0:00:54]} 25. g3 {[%clk 0:00:30]}  Ne4 {[%clk 0:00:50]} 26. Qc2 {[%clk 0:00:31]}  a5 {[%clk 0:00:46]} 27. a4 {[%clk 0:00:23]}  Be8 {[%clk 0:00:45]} 28. b5 {[%clk 0:00:16]}  Qe7 {[%clk 0:00:43]} 29. Bg2 {[%clk 0:00:15]}  Nf6 {[%clk 0:00:37]} 30. Qb2 {[%clk 0:00:14]}  Qd6 {[%clk 0:00:30]} 31. h3 {[%clk 0:00:14]}  Kh7 {[%clk 0:00:29]} 32. Ra1 {[%clk 0:00:15]}  Bh5 {[%clk 0:00:22]} 33. Kh2 {[%clk 0:00:14]}  Be8 {[%clk 0:00:21]} 34. Bf3 {[%clk 0:00:14]}  Bg6 {[%clk 0:00:20]} 35. Rg1 {[%clk 0:00:12]}  h5 {[%clk 0:00:19]} 36. Qe2 {[%clk 0:00:11]}  Be8 {[%clk 0:00:18]} 37. Ra2 {[%clk 0:00:10]}  g6 {[%clk 0:00:17]} 38. Qd1 {[%clk 0:00:11]}  Kg7 {[%clk 0:00:17]} 39. Qa1 {[%clk 0:00:10]}  Bf7 {[%clk 0:00:16]} 40. Kg2 {[%clk 0:00:09]}  Rh8 {[%clk 0:00:16]} 41. Kf1 {[%clk 0:00:09]}  Be8 {[%clk 0:00:14]} 42. Rag2 {[%clk 0:00:08]}  Ne4 {[%clk 0:00:14]} 43. Bxe4 {[%clk 0:00:07]}  dxe4 {[%clk 0:00:15]} 44. Ke2 {[%clk 0:00:07]}  Qd5 {[%clk 0:00:15]} 45. Kd2 {[%clk 0:00:07]}  Kf6 {[%clk 0:00:14]} 46. Qb2 {[%clk 0:00:06]}  Ke7 {[%clk 0:00:13]} 47. Rh2 {[%clk 0:00:06]}  Kd8 {[%clk 0:00:07]} 48. Qa3 {[%clk 0:00:06]}  Bd7 {[%clk 0:00:04]} 49. Nxg6 {[%clk 0:00:06]}  Rg8 {[%clk 0:00:02]} 50. Ne7 {[%clk 0:00:05]} 1-0


[Site "https://www.chess.com"]

[Event "Titled Tuesday Blitz May 9 Early 2023"]
[White "electrosaw"]
[Black "Volkov, Maksim"]
[BlackFideId "54123070"]
[WhiteElo "2441"]
[BlackElo "2297"]
[Result "0-1"]
[Round "04"]
[TimeControl "180+2"]
[Date "2023.05.09"]
[WhiteClock "0:00:29"]
[BlackClock "0:00:17"]

1. e4 {[%clk 0:03:00]}  c5 {[%clk 0:02:59]} 2. Nf3 {[%clk 0:03:01]}  d6 {[%clk 0:02:59]} 3. Bb5+ {[%clk 0:03:01]}  Nd7 {[%clk 0:02:58]} 4. O-O {[%clk 0:03:01]}  a6 {[%clk 0:02:59]} 5. Bxd7+ {[%clk 0:03:01]}  Bxd7 {[%clk 0:02:59]} 6. d4 {[%clk 0:03:01]}  cxd4 {[%clk 0:02:59]} 7. Qxd4 {[%clk 0:03:02]}  Nf6 {[%clk 0:02:58]} 8. c4 {[%clk 0:03:00]}  e6 {[%clk 0:02:55]} 9. Nc3 {[%clk 0:02:58]}  Bc6 {[%clk 0:02:54]} 10. Be3 {[%clk 0:02:50]}  Be7 {[%clk 0:02:53]} 11. a4 {[%clk 0:02:49]}  O-O {[%clk 0:02:50]} 12. Rfd1 {[%clk 0:02:48]}  Ng4 {[%clk 0:02:43]} 13. a5 {[%clk 0:02:40]}  Bf6 {[%clk 0:02:37]} 14. Qd3 {[%clk 0:02:33]}  Nxe3 {[%clk 0:02:36]} 15. Qxe3 {[%clk 0:02:34]}  Bxc3 {[%clk 0:02:31]} 16. bxc3 {[%clk 0:02:34]}  Qc7 {[%clk 0:02:28]} 17. Qf4 {[%clk 0:02:23]}  e5 {[%clk 0:02:20]} 18. Qh4 {[%clk 0:02:21]}  Rfd8 {[%clk 0:01:52]} 19. Ne1 {[%clk 0:02:11]}  f6 {[%clk 0:01:40]} 20. Nd3 {[%clk 0:02:08]}  Be8 {[%clk 0:01:40]} 21. Nb4 {[%clk 0:02:04]}  Qxc4 {[%clk 0:01:39]} 22. Nd5 {[%clk 0:02:04]}  Qc5 {[%clk 0:01:27]} 23. Rab1 {[%clk 0:01:54]}  Rab8 {[%clk 0:01:21]} 24. Rd3 {[%clk 0:01:26]}  Bg6 {[%clk 0:01:07]} 25. Rg3 {[%clk 0:01:19]}  Qxa5 {[%clk 0:01:00]} 26. Ne7+ {[%clk 0:01:15]}  Kf7 {[%clk 0:00:59]} 27. Nxg6 {[%clk 0:01:06]}  hxg6 {[%clk 0:01:00]} 28. Qh7 {[%clk 0:01:07]}  g5 {[%clk 0:00:56]} 29. Qh5+ {[%clk 0:01:07]}  Ke7 {[%clk 0:00:55]} 30. Qg6 {[%clk 0:01:04]}  Rg8 {[%clk 0:00:44]} 31. Rd1 {[%clk 0:00:59]}  Qc7 {[%clk 0:00:42]} 32. Rgd3 {[%clk 0:00:54]}  Rbd8 {[%clk 0:00:41]} 33. g3 {[%clk 0:00:49]}  Kf8 {[%clk 0:00:40]} 34. f4 {[%clk 0:00:49]}  gxf4 {[%clk 0:00:37]} 35. gxf4 {[%clk 0:00:50]}  exf4 {[%clk 0:00:35]} 36. Rf1 {[%clk 0:00:50]}  Qc5+ {[%clk 0:00:33]} 37. Kh1 {[%clk 0:00:49]}  Qg5 {[%clk 0:00:25]} 38. Qxg5 {[%clk 0:00:49]}  fxg5 {[%clk 0:00:26]} 39. Rd5 {[%clk 0:00:50]}  Re8 {[%clk 0:00:22]} 40. Rxd6 {[%clk 0:00:44]}  Rxe4 {[%clk 0:00:22]} 41. Rb1 {[%clk 0:00:44]}  Re7 {[%clk 0:00:19]} 42. Rg6 {[%clk 0:00:39]}  Rh8 {[%clk 0:00:19]} 43. Rxg5 {[%clk 0:00:37]}  Rh3 {[%clk 0:00:20]} 44. Rf5+ {[%clk 0:00:37]}  Kg8 {[%clk 0:00:20]} 45. Rxf4 {[%clk 0:00:37]}  Rxc3 {[%clk 0:00:21]} 46. Rbf1 {[%clk 0:00:33]}  Rc8 {[%clk 0:00:20]} 47. h4 {[%clk 0:00:31]}  Rce8 {[%clk 0:00:19]} 48. Rg4 {[%clk 0:00:31]}  Re1 {[%clk 0:00:18]} 49. Rxe1 {[%clk 0:00:31]}  Rxe1+ {[%clk 0:00:19]} 50. Kg2 {[%clk 0:00:32]}  Re3 {[%clk 0:00:19]} 51. h5 {[%clk 0:00:32]}  Kh7 {[%clk 0:00:18]} 52. Rg6 {[%clk 0:00:32]}  Ra3 {[%clk 0:00:18]} 53. Rb6 {[%clk 0:00:32]}  Ra5 {[%clk 0:00:16]} 54. h6 {[%clk 0:00:30]}  Rb5 {[%clk 0:00:13]} 55. Rxb5 {[%clk 0:00:27]}  axb5 {[%clk 0:00:14]} 56. hxg7 {[%clk 0:00:27]}  Kxg7 {[%clk 0:00:15]} 57. Kf3 {[%clk 0:00:28]}  Kf6 {[%clk 0:00:16]} 58. Ke3 {[%clk 0:00:29]}  Ke6 {[%clk 0:00:17]} 59. Kd4 {[%clk 0:00:29]}  Kd6 {[%clk 0:00:17]} 0-1


[Site "https://www.chess.com"]